fUSD/lending_fUSD_20260701
["ID","MTS","AMOUNT","RATE_DAILY","PERIOD"]
[426804010,1782841839000,-676.0,0.00027397,5]
[426804018,1782841839000,-183.94067061,0.00027397,2]
[426804020,1782841839000,-367.88134121,0.00027397,2]
[426804031,1782841839000,-300.0,0.0002769,2]
[426804023,1782841839000,-551.82201182,0.00027397,2]
[426804091,1782841839000,-154.15981973,0.00030165,2]
[426804033,1782841839000,-1000.0,0.0002769,2]
[426804087,1782841839000,-170.3940103,0.00030137,120]
[426804123,1782841839000,-1450.8487,0.00032,2]
[426804124,1782841839000,-756.69787109,0.00032242,2]
[426804134,1782841839000,-154.15981973,0.00033032,2]
[426804125,1782841839000,-1000.0,0.00032278,30]
[426804126,1782841839000,-3168.5388,0.00032313,2]
[426804127,1782841839000,-1000.0,0.0003246,30]
[426804128,1782841839000,-151.0,0.00032559,30]
[426804129,1782841839000,-150.0,0.00032562,2]
[426804133,1782841839000,-504.0,0.00032801,8]
[426804131,1782841839000,-182.50187622,0.00032699,2]
[426804132,1782841839000,-151.0,0.00032762,2]
[426804130,1782841839000,-208.58,0.00032574,3]
[426804137,1782841839000,-216.0,0.00033278,2]
[426804135,1782841839000,-1000.0,0.0003306,30]
[426804139,1782841839000,-756.69787109,0.00033295,2]
[426804138,1782841839000,-6088.0,0.00033278,2]
[426804142,1782841839000,-534.76308331,0.00033396,2]
[426804146,1782841839000,-1101.13386496,0.00033396,2]
[426804143,1782841839000,-300.0,0.00033396,2]
[426804145,1782841839000,-300.0,0.00033396,2]
[426804148,1782841839000,-370.50129633,0.00033396,2]
[426804136,1782841839000,-3565.0,0.00033278,2]
[426804141,1782841839000,-2468.28,0.00033386,2]
[426804144,1782841839000,-300.0,0.00033396,2]
[426804150,1782841839000,-300.0,0.00033396,2]
[426804152,1782841839000,-300.0,0.00033396,2]
[426804089,1782841839000,-170.15999999,0.00030137,2]
[426804121,1782841839000,-1000.0,0.0003187,30]
[426804120,1782841839000,-504.0,0.00031857,7]
[426804155,1782841839000,-300.0,0.00033396,2]
[426804122,1782841839000,-153.0,0.0003195,7]
[426804096,1782841839000,-1198.896,0.00030436,26]
[426804097,1782841839000,-800.0,0.000305,2]
[426804095,1782841839000,-162.23,0.00030411,120]
[426804093,1782841839000,-216.0,0.00030278,2]
[426804092,1782841839000,-3565.0,0.00030278,2]
[426804090,1782841839000,-756.69787109,0.00030137,2]
[426804099,1782841839000,-800.0,0.000305,2]
[426804109,1782841839000,-756.69787109,0.0003119,2]
[426804098,1782841839000,-800.0,0.000305,2]
[426804101,1782841839000,-461.46,0.00030571,14]
[426804102,1782841839000,-1000.0,0.00030708,2]
[426804105,1782841839000,-808.87949845,0.00030708,2]
[426804103,1782841839000,-1000.0,0.00030708,2]
[426804100,1782841839000,-151.0,0.00030559,30]
[426804107,1782841839000,-1000.0,0.00031,7]
[426804154,1782841839000,-300.0,0.00033396,2]
[426804104,1782841839000,-1000.0,0.00030708,2]
[426804118,1782841839000,-151.0,0.00031559,30]
[426804114,1782841839000,-202.90094085,0.000314,2]
[426804117,1782841839000,-209.51,0.0003155,3]
[426804113,1782841839000,-202.90094086,0.000314,2]
[426804115,1782841839000,-202.90094085,0.000314,2]
[426804119,1782841839000,-151.0,0.00031646,2]
[426804111,1782841839000,-2337.0,0.00031296,3]
[426804116,1782841839000,-171.91891693,0.000315,2]
[426804110,1782841839000,-160.0,0.00031296,3]
[426804106,1782841839000,-504.0,0.00030913,6]
[426804108,1782841839000,-150.0,0.00031011,2]
[426804112,1782841839000,-2337.0,0.00031296,3]
[426804190,1782841840000,-345.78163832,0.00033396,2]
[426804198,1782841840000,-300.0,0.00033396,2]
[426804192,1782841840000,-300.0,0.00033396,2]
[426804195,1782841840000,-300.0,0.00033396,2]
[426804194,1782841840000,-300.0,0.00033396,2]
[426804191,1782841840000,-529.66240687,0.00033396,2]
[426804199,1782841840000,-300.0,0.00033396,2]
[426804188,1782841840000,-300.0,0.00033396,2]
[426804184,1782841840000,-300.0,0.00033396,2]
[426804189,1782841840000,-300.0,0.00033396,2]
[426804193,1782841840000,-300.0,0.00033396,2]
[426804180,1782841840000,-300.0,0.00033396,2]
[426804211,1782841840000,-300.0,0.00033396,2]
[426804197,1782841840000,-1807.41685047,0.00033396,2]
[426804201,1782841840000,-300.0,0.00033396,2]
[426804200,1782841840000,-576.47447351,0.00033396,2]
[426804203,1782841840000,-300.0,0.00033396,2]
[426804202,1782841840000,-597.30103364,0.00033396,2]
[426804204,1782841840000,-311.24105314,0.00033396,2]
[426804205,1782841840000,-300.0,0.00033396,2]
[426804207,1782841840000,-300.0,0.00033396,2]
[426804209,1782841840000,-300.0,0.00033396,2]
[426804206,1782841840000,-569.05020943,0.00033396,2]
[426804210,1782841840000,-300.0,0.00033396,2]
[426804208,1782841840000,-300.0,0.00033396,2]
[426804181,1782841840000,-302.18244982,0.00033396,2]
[426804196,1782841840000,-954.35902138,0.00033396,2]
[426804182,1782841840000,-531.70376798,0.00033396,2]
[426804170,1782841840000,-300.0,0.00033396,2]
[426804185,1782841840000,-300.0,0.00033396,2]
[426804222,1782841840000,-446.13298497,0.00033396,2]
[426804160,1782841840000,-300.0,0.00033396,2]
[426804162,1782841840000,-300.0,0.00033396,2]
[426804163,1782841840000,-495.31706617,0.00033396,2]
[426804161,1782841840000,-300.0,0.00033396,2]
[426804156,1782841840000,-300.0,0.00033396,2]
[426804157,1782841840000,-300.0,0.00033396,2]
[426804158,1782841840000,-300.0,0.00033396,2]
[426804159,1782841840000,-300.0,0.00033396,2]
[426804164,1782841840000,-300.0,0.00033396,2]
[426804166,1782841840000,-300.0,0.00033396,2]
[426804168,1782841840000,-607.8838736,0.00033396,2]
[426804183,1782841840000,-300.0,0.00033396,2]
[426804174,1782841840000,-300.0,0.00033396,2]
[426804165,1782841840000,-300.0,0.00033396,2]
[426804167,1782841840000,-300.0,0.00033396,2]
[426804169,1782841840000,-300.0,0.00033396,2]
[426804171,1782841840000,-300.0,0.00033396,2]
[426804173,1782841840000,-536.80437166,0.00033396,2]
[426804176,1782841840000,-730.16355908,0.00033396,2]
[426804187,1782841840000,-300.0,0.00033396,2]
[426804186,1782841840000,-300.0,0.00033396,2]
[426804175,1782841840000,-356.43887246,0.00033396,2]
[426804179,1782841840000,-300.0,0.00033396,2]
[426804178,1782841840000,-303.39655282,0.00033396,2]
[426804177,1782841840000,-300.0,0.00033396,2]
[426804172,1782841840000,-300.0,0.00033396,2]
[426804215,1782841840000,-300.0,0.00033396,2]
[426804213,1782841840000,-300.0,0.00033396,2]
[426804274,1782841840000,-300.0,0.00033396,2]
[426804247,1782841840000,-547.97675876,0.00033396,2]
[426804248,1782841840000,-300.0,0.00033396,2]
[426804258,1782841840000,-300.0,0.00033396,2]
[426804249,1782841840000,-536.80437166,0.00033396,2]
[426804251,1782841840000,-300.0,0.00033396,2]
[426804250,1782841840000,-730.16355908,0.00033396,2]
[426804255,1782841840000,-300.0,0.00033396,2]
[426804252,1782841840000,-303.39655282,0.00033396,2]
[426804253,1782841840000,-300.0,0.00033396,2]
[426804256,1782841840000,-300.0,0.00033396,2]
[426804257,1782841840000,-300.0,0.00033396,2]
[426804259,1782841840000,-300.0,0.00033396,2]
[426804244,1782841840000,-607.8838736,0.00033396,2]
[426804260,1782841840000,-300.0,0.00033396,2]
[426804268,1782841840000,-954.35902138,0.00033396,2]
[426804263,1782841840000,-529.66240687,0.00033396,2]
[426804270,1782841840000,-1807.41685047,0.00033396,2]
[426804265,1782841840000,-300.0,0.00033396,2]
[426804261,1782841840000,-300.0,0.00033396,2]
[426804267,1782841840000,-300.0,0.00033396,2]
[426804266,1782841840000,-300.0,0.00033396,2]
[426804262,1782841840000,-345.78163832,0.00033396,2]
[426804264,1782841840000,-300.0,0.00033396,2]
[426804273,1782841840000,-300.0,0.00033396,2]
[426804272,1782841840000,-576.47447351,0.00033396,2]
[426804216,1782841840000,-454.29401878,0.00033396,2]
[426804271,1782841840000,-300.0,0.00033396,2]
[426804236,1782841840000,-300.0,0.00033396,2]
[426804254,1782841840000,-302.18244982,0.00033396,2]
[426804241,1782841840000,-300.0,0.00033396,2]
[426804239,1782841840000,-495.31706617,0.00033396,2]
[426804214,1782841840000,-584.74673027,0.00033396,2]
[426804220,1782841840000,-300.0,0.00033396,2]
[426804221,1782841840000,-300.0,0.00033396,2]
[426804217,1782841840000,-300.0,0.00033396,2]
[426804218,1782841840000,-300.0,0.00033396,2]
[426804219,1782841840000,-300.0,0.00033396,2]
[426804224,1782841840000,-300.0,0.00033396,2]
[426804234,1782841840000,-300.0,0.00033396,2]
[426804223,1782841840000,-300.0,0.00033396,2]
[426804229,1782841840000,-300.0,0.00033396,2]
[426804231,1782841840000,-300.0,0.00033396,2]
[426804228,1782841840000,-300.0,0.00033396,2]
[426804225,1782841840000,-300.0,0.00033396,2]
[426804212,1782841840000,-513.9940935,0.00033396,2]
[426804238,1782841840000,-300.0,0.00033396,2]
[426804227,1782841840000,-1101.13386496,0.00033396,2]
[426804242,1782841840000,-300.0,0.00033396,2]
[426804245,1782841840000,-300.0,0.00033396,2]
[426804243,1782841840000,-300.0,0.00033396,2]
[426804240,1782841840000,-300.0,0.00033396,2]
[426804246,1782841840000,-300.0,0.00033396,2]
[426804235,1782841840000,-300.0,0.00033396,2]
[426804232,1782841840000,-300.0,0.00033396,2]
[426804233,1782841840000,-300.0,0.00033396,2]
[426804226,1782841840000,-301.33581357,0.00033396,2]
[426804230,1782841840000,-300.0,0.00033396,2]
[426804237,1782841840000,-300.0,0.00033396,2]
[426804319,1782841841000,-2337.0,0.000339,11]
[426804314,1782841841000,-1000.0,0.00033668,30]
[426804316,1782841841000,-688.0,0.0003367,5]
[426804313,1782841841000,-1000.0,0.00033668,30]
[426804315,1782841841000,-219169.0,0.0003367,30]
[426804302,1782841841000,-250.0,0.00033407,7]
[426804311,1782841841000,-2468.28,0.0003366,2]
[426804308,1782841841000,-686.0,0.0003366,5]
[426804304,1782841841000,-165.0,0.00033471,10]
[426804303,1782841841000,-3010.0,0.00033408,10]
[426804309,1782841841000,-676.0,0.0003366,5]
[426804310,1782841841000,-2468.28,0.0003366,2]
[426804317,1782841841000,-504.0,0.00033745,9]
[426804323,1782841841000,-500.0,0.00033917,7]
[426804312,1782841841000,-2468.28,0.0003366,2]
[426804321,1782841841000,-500.0,0.00033917,7]
[426804331,1782841841000,-160.0,0.00034,2]
[426804332,1782841841000,-160.75849299,0.00034,2]
[426804320,1782841841000,-1483.93556126,0.00033904,2]
[426804322,1782841841000,-500.0,0.00033917,7]
[426804324,1782841841000,-500.0,0.00033917,7]
[426804325,1782841841000,-500.0,0.00033917,7]
[426804326,1782841841000,-500.0,0.00033917,7]
[426804327,1782841841000,-500.0,0.00033917,7]
[426804330,1782841841000,-155.04098883,0.00033929,2]
[426804329,1782841841000,-500.0,0.00033917,7]
[426804318,1782841841000,-160.0,0.000339,11]
[426804305,1782841841000,-165.0,0.00033478,10]
[426804328,1782841841000,-358.07699845,0.00033917,7]
[426804300,1782841841000,-534.0370273,0.00033399,60]
[426804283,1782841841000,-300.0,0.00033396,2]
[426804275,1782841841000,-597.30103364,0.00033396,2]
[426804276,1782841841000,-300.0,0.00033396,2]
[426804281,1782841841000,-300.0,0.00033396,2]
[426804279,1782841841000,-569.05020943,0.00033396,2]
[426804277,1782841841000,-311.24105314,0.00033396,2]
[426804280,1782841841000,-300.0,0.00033396,2]
[426804282,1782841841000,-300.0,0.00033396,2]
[426804278,1782841841000,-300.0,0.00033396,2]
[426804284,1782841841000,-300.0,0.00033396,2]
[426804285,1782841841000,-513.9940935,0.00033396,2]
[426804287,1782841841000,-584.74673027,0.00033396,2]
[426804286,1782841841000,-300.0,0.00033396,2]
[426804288,1782841841000,-300.0,0.00033396,2]
[426804292,1782841841000,-300.0,0.00033396,2]
[426804289,1782841841000,-454.29401878,0.00033396,2]
[426804291,1782841841000,-300.0,0.00033396,2]
[426804294,1782841841000,-300.0,0.00033396,2]
[426804290,1782841841000,-300.0,0.00033396,2]
[426804293,1782841841000,-448.13952337,0.00033396,2]
[426804296,1782841841000,-300.0,0.00033396,2]
[426804295,1782841841000,-446.13298497,0.00033396,2]
[426804298,1782841841000,-300.0,0.00033396,2]
[426804297,1782841841000,-300.0,0.00033396,2]
[426804307,1782841841000,-357.01,0.00033598,3]
[426804306,1782841841000,-151.0,0.00033559,30]
[426804299,1782841841000,-300.0,0.00033396,2]
[426804301,1782841841000,-238.9473695,0.00033399,60]
[426804334,1782841841000,-785.0,0.00034028,2]
[426804386,1782841841000,-750.0,0.00034363,3]
[426804340,1782841841000,-606.0,0.00034139,2]
[426804367,1782841841000,-25000.0,0.00034359,3]
[426804371,1782841841000,-750.0,0.00034363,3]
[426804369,1782841841000,-750.0,0.00034363,3]
[426804374,1782841841000,-750.0,0.00034363,3]
[426804372,1782841841000,-750.0,0.00034363,3]
[426804370,1782841841000,-750.0,0.00034363,3]
[426804368,1782841841000,-1353.80364335,0.00034359,3]
[426804376,1782841841000,-750.0,0.00034363,3]
[426804377,1782841841000,-750.0,0.00034363,3]
[426804380,1782841841000,-750.0,0.00034363,3]
[426804378,1782841841000,-750.0,0.00034363,3]
[426804379,1782841841000,-750.0,0.00034363,3]
[426804375,1782841841000,-750.0,0.00034363,3]
[426804388,1782841841000,-750.0,0.00034363,3]
[426804389,1782841841000,-785.0,0.00034398,2]
[426804391,1782841841000,-785.0,0.00034398,2]
[426804390,1782841841000,-785.0,0.00034398,2]
[426804381,1782841841000,-750.0,0.00034363,3]
[426804392,1782841841000,-785.0,0.00034398,2]
[426804393,1782841841000,-1500.0,0.000344,7]
[426804382,1782841841000,-750.0,0.00034363,3]
[426804384,1782841841000,-750.0,0.00034363,3]
[426804387,1782841841000,-750.0,0.00034363,3]
[426804383,1782841841000,-750.0,0.00034363,3]
[426804385,1782841841000,-804.0,0.00034363,3]
[426804333,1782841841000,-785.0,0.00034028,2]
[426804394,1782841841000,-202.66,0.000344,13]
[426804359,1782841841000,-25000.0,0.00034359,3]
[426804363,1782841841000,-13275.28964116,0.00034359,3]
[426804373,1782841841000,-750.0,0.00034363,3]
[426804360,1782841841000,-25000.0,0.00034359,3]
[426804336,1782841841000,-785.0,0.00034028,2]
[426804364,1782841841000,-25000.0,0.00034359,3]
[426804335,1782841841000,-785.0,0.00034028,2]
[426804337,1782841841000,-199.0,0.0003411,30]
[426804339,1782841841000,-171.1336522,0.00034132,14]
[426804341,1782841841000,-200.0,0.00034139,2]
[426804342,1782841841000,-200.0,0.00034139,2]
[426804350,1782841841000,-500.0,0.00034139,2]
[426804351,1782841841000,-200.0,0.00034139,2]
[426804346,1782841841000,-200.0,0.00034139,2]
[426804349,1782841841000,-500.0,0.00034139,2]
[426804345,1782841841000,-200.0,0.00034139,2]
[426804344,1782841841000,-200.0,0.00034139,2]
[426804347,1782841841000,-200.0,0.00034139,2]
[426804338,1782841841000,-46202.48279848,0.00034119,30]
[426804358,1782841841000,-756.69787109,0.00034347,2]
[426804348,1782841841000,-200.0,0.00034139,2]
[426804362,1782841841000,-25000.0,0.00034359,3]
[426804357,1782841841000,-2337.0,0.00034218,11]
[426804356,1782841841000,-160.0,0.00034218,11]
[426804366,1782841841000,-25000.0,0.00034359,3]
[426804361,1782841841000,-5889.48324625,0.00034359,3]
[426804354,1782841841000,-500.0,0.00034139,2]
[426804355,1782841841000,-150.0,0.0003419,2]
[426804352,1782841841000,-500.0,0.00034139,2]
[426804353,1782841841000,-500.0,0.00034139,2]
[426804343,1782841841000,-200.0,0.00034139,2]
[426804365,1782841841000,-25000.0,0.00034359,3]
[426804434,1782841842000,-750.0,0.000345,3]
[426804437,1782841842000,-750.0,0.000345,3]
[426804446,1782841842000,-160.0,0.00034538,11]
[426804436,1782841842000,-750.0,0.000345,3]
[426804445,1782841842000,-2337.0,0.00034536,11]
[426804429,1782841842000,-750.0,0.000345,3]
[426804428,1782841842000,-750.0,0.000345,3]
[426804430,1782841842000,-750.0,0.000345,3]
[426804427,1782841842000,-750.0,0.000345,3]
[426804433,1782841842000,-750.0,0.000345,3]
[426804444,1782841842000,-160.0,0.00034534,11]
[426804435,1782841842000,-750.0,0.000345,3]
[426804440,1782841842000,-750.0,0.000345,3]
[426804450,1782841842000,-287.0,0.00034637,3]
[426804439,1782841842000,-750.0,0.000345,3]
[426804438,1782841842000,-750.0,0.000345,3]
[426804441,1782841842000,-750.0,0.000345,3]
[426804443,1782841842000,-531.84,0.00034521,120]
[426804447,1782841842000,-2337.0,0.00034538,11]
[426804456,1782841842000,-750.0,0.00034637,3]
[426804448,1782841842000,-151.0,0.00034559,30]
[426804453,1782841842000,-750.0,0.00034637,3]
[426804452,1782841842000,-750.0,0.00034637,3]
[426804449,1782841842000,-356.05,0.00034621,3]
[426804459,1782841842000,-750.0,0.00034637,3]
[426804451,1782841842000,-750.0,0.00034637,3]
[426804422,1782841842000,-750.0,0.000345,3]
[426804442,1782841842000,-341.0,0.000345,3]
[426804431,1782841842000,-750.0,0.000345,3]
[426804397,1782841842000,-151.0,0.00034435,7]
[426804424,1782841842000,-750.0,0.000345,3]
[426804455,1782841842000,-750.0,0.00034637,3]
[426804396,1782841842000,-151.0,0.00034435,7]
[426804398,1782841842000,-151.0,0.00034435,7]
[426804400,1782841842000,-151.0,0.00034435,7]
[426804403,1782841842000,-297.24210037,0.00034435,7]
[426804402,1782841842000,-5579.90352752,0.00034435,2]
[426804399,1782841842000,-151.0,0.00034435,7]
[426804404,1782841842000,-154.78100838,0.00034466,30]
[426804401,1782841842000,-151.0,0.00034435,7]
[426804405,1782841842000,-168.5827997,0.00034466,30]
[426804395,1782841842000,-1483.93556126,0.00034403,2]
[426804406,1782841842000,-154.78100838,0.00034466,30]
[426804409,1782841842000,-750.0,0.000345,3]
[426804408,1782841842000,-152.96544708,0.00034466,30]
[426804413,1782841842000,-750.0,0.000345,3]
[426804412,1782841842000,-750.0,0.000345,3]
[426804407,1782841842000,-152.96041084,0.00034466,30]
[426804417,1782841842000,-750.0,0.000345,3]
[426804419,1782841842000,-750.0,0.000345,3]
[426804414,1782841842000,-750.0,0.000345,3]
[426804418,1782841842000,-750.0,0.000345,3]
[426804411,1782841842000,-750.0,0.000345,3]
[426804410,1782841842000,-750.0,0.000345,3]
[426804415,1782841842000,-750.0,0.000345,3]
[426804416,1782841842000,-750.0,0.000345,3]
[426804421,1782841842000,-750.0,0.000345,3]
[426804423,1782841842000,-750.0,0.000345,3]
[426804420,1782841842000,-750.0,0.000345,3]
[426804425,1782841842000,-750.0,0.000345,3]
[426804432,1782841842000,-750.0,0.000345,3]
[426804454,1782841842000,-750.0,0.00034637,3]
[426804426,1782841842000,-750.0,0.000345,3]
[426804458,1782841842000,-750.0,0.00034637,3]
[426804492,1782841842000,-1500.0,0.00034795,2]
[426804494,1782841842000,-300.04099165,0.00034795,2]
[426804489,1782841842000,-1173.09821359,0.00034779,7]
[426804505,1782841842000,-180.30760388,0.000349,2]
[426804508,1782841842000,-166.25957906,0.000349,7]
[426804510,1782841842000,-11107.39727872,0.000349,2]
[426804512,1782841842000,-1483.93556126,0.00034901,2]
[426804503,1782841842000,-214.90605331,0.00034849,30]
[426804514,1782841842000,-154.78100838,0.00034904,30]
[426804515,1782841842000,-158.4,0.00034908,30]
[426804516,1782841842000,-151.0,0.00034968,7]
[426804519,1782841842000,-151.0,0.00034968,7]
[426804513,1782841842000,-154.78100838,0.00034904,30]
[426804517,1782841842000,-151.0,0.00034968,7]
[426804518,1782841842000,-151.0,0.00034968,7]
[426804533,1782841842000,-812.0,0.0003498,120]
[426804521,1782841842000,-151.0,0.00034968,7]
[426804531,1782841842000,-812.0,0.0003497,120]
[426804532,1782841842000,-749.0,0.0003498,120]
[426804522,1782841842000,-151.0,0.00034968,7]
[426804523,1782841842000,-151.0,0.00034968,7]
[426804520,1782841842000,-151.0,0.00034968,7]
[426804526,1782841842000,-166.0,0.00034968,7]
[426804530,1782841842000,-749.0,0.0003497,120]
[426804528,1782841842000,-166.0,0.00034968,7]
[426804529,1782841842000,-15240.57347093,0.00034968,2]
[426804524,1782841842000,-151.0,0.00034968,7]
[426804525,1782841842000,-151.0,0.00034968,7]
[426804457,1782841842000,-750.0,0.00034637,3]
[426804488,1782841842000,-573.9,0.00034778,2]
[426804490,1782841842000,-219169.0,0.0003478,30]
[426804527,1782841842000,-166.0,0.00034968,7]
[426804486,1782841842000,-156.51005389,0.0003476,2]
[426804487,1782841842000,-152.96544708,0.00034767,30]
[426804471,1782841842000,-4516.0,0.00034744,10]
[426804460,1782841842000,-750.0,0.00034637,3]
[426804472,1782841842000,-156.51005393,0.0003476,2]
[426804464,1782841842000,-154.78100838,0.00034685,30]
[426804465,1782841842000,-154.78100838,0.00034685,30]
[426804468,1782841842000,-168.5827997,0.00034712,30]
[426804467,1782841842000,-46202.48279849,0.0003471,30]
[426804463,1782841842000,-750.0,0.00034637,3]
[426804470,1782841842000,-200.0,0.0003472,10]
[426804462,1782841842000,-750.0,0.00034637,3]
[426804469,1782841842000,-152.96041084,0.00034712,30]
[426804466,1782841842000,-504.0,0.00034689,10]
[426804473,1782841842000,-156.51005389,0.0003476,2]
[426804461,1782841842000,-750.0,0.00034637,3]
[426804476,1782841842000,-156.51005389,0.0003476,2]
[426804475,1782841842000,-156.51005389,0.0003476,2]
[426804498,1782841842000,-165.0,0.00034848,10]
[426804500,1782841842000,-214.90605332,0.00034849,30]
[426804496,1782841842000,-165.0,0.00034841,10]
[426804485,1782841842000,-156.51005389,0.0003476,2]
[426804482,1782841842000,-156.51005389,0.0003476,2]
[426804484,1782841842000,-156.51005389,0.0003476,2]
[426804478,1782841842000,-156.51005389,0.0003476,2]
[426804477,1782841842000,-156.51005389,0.0003476,2]
[426804481,1782841842000,-156.51005389,0.0003476,2]
[426804483,1782841842000,-156.51005389,0.0003476,2]
[426804480,1782841842000,-156.51005389,0.0003476,2]
[426804474,1782841842000,-156.51005389,0.0003476,2]
[426804479,1782841842000,-156.51005389,0.0003476,2]
[426804575,1782841843000,-22500.0,0.00035062,2]
[426804576,1782841843000,-152.96544708,0.00035068,30]
[426804572,1782841843000,-22500.0,0.00035062,2]
[426804571,1782841843000,-86731.91817913,0.00035062,17]
[426804568,1782841843000,-1500.0,0.00035,2]
[426804570,1782841843000,-160.0,0.00035032,11]
[426804567,1782841843000,-1500.0,0.00035,2]
[426804562,1782841843000,-1500.0,0.00035,2]
[426804573,1782841843000,-22500.0,0.00035062,2]
[426804564,1782841843000,-1500.0,0.00035,2]
[426804569,1782841843000,-160.0,0.00035,30]
[426804560,1782841843000,-50090.0,0.00035,30]
[426804591,1782841843000,-160.286928,0.00035145,60]
[426804579,1782841843000,-9044.0,0.00035091,5]
[426804578,1782841843000,-200.0,0.00035087,10]
[426804577,1782841843000,-340.0,0.0003508,30]
[426804580,1782841843000,-659.42805779,0.000351,30]
[426804581,1782841843000,-659.42805776,0.000351,30]
[426804586,1782841843000,-154.78100838,0.00035123,30]
[426804582,1782841843000,-659.42805776,0.000351,30]
[426804585,1782841843000,-186.24549334,0.000351,30]
[426804584,1782841843000,-186.24549334,0.000351,30]
[426804583,1782841843000,-186.24549335,0.000351,30]
[426804590,1782841843000,-325.47917,0.0003514,63]
[426804566,1782841843000,-1500.0,0.00035,2]
[426804588,1782841843000,-13830.65,0.00035125,2]
[426804574,1782841843000,-22500.0,0.00035062,2]
[426804561,1782841843000,-159.0,0.00035,30]
[426804557,1782841843000,-22499.98,0.00035,2]
[426804565,1782841843000,-1500.0,0.00035,2]
[426804587,1782841843000,-154.78100838,0.00035123,30]
[426804534,1782841843000,-168.5827997,0.00034986,30]
[426804539,1782841843000,-812.0,0.0003499,120]
[426804536,1782841843000,-12211.5786604,0.00034989,2]
[426804537,1782841843000,-494.95442488,0.0003499,15]
[426804535,1782841843000,-152.96041084,0.00034986,30]
[426804538,1782841843000,-749.0,0.0003499,120]
[426804543,1782841843000,-151.0,0.00034997,14]
[426804542,1782841843000,-150.0,0.00034997,2]
[426804545,1782841843000,-204.032,0.00034999,2]
[426804540,1782841843000,-685.0,0.0003499,5]
[426804541,1782841843000,-151.0,0.00034997,14]
[426804563,1782841843000,-1500.0,0.00035,2]
[426804544,1782841843000,-150.0,0.00034998,2]
[426804548,1782841843000,-22499.99,0.00035,2]
[426804549,1782841843000,-725.4243,0.00035,2]
[426804552,1782841843000,-649.32395665,0.00035,2]
[426804546,1782841843000,-22499.99,0.00035,2]
[426804555,1782841843000,-22499.98,0.00035,2]
[426804551,1782841843000,-1500.0,0.00035,2]
[426804553,1782841843000,-22500.0,0.00035,2]
[426804556,1782841843000,-22500.0,0.00035,2]
[426804550,1782841843000,-1500.0,0.00035,2]
[426804554,1782841843000,-4788.86,0.00035,2]
[426804558,1782841843000,-22500.0,0.00035,2]
[426804559,1782841843000,-22500.0,0.00035,2]
[426804547,1782841843000,-1207654.18308521,0.00035,30]
[426804589,1782841843000,-7366.41989366,0.00035138,2]
[426804598,1782841843000,-88995.4439315,0.00035209,2]
[426804594,1782841843000,-2337.0,0.0003518,11]
[426804622,1782841843000,-194.0,0.00035263,7]
[426804626,1782841843000,-178.50147714,0.000353,120]
[426804628,1782841843000,-186.16049714,0.000353,120]
[426804627,1782841843000,-246.75855825,0.000353,120]
[426804625,1782841843000,-200.0,0.000353,120]
[426804629,1782841843000,-187.17877331,0.000353,120]
[426804631,1782841843000,-206.735424,0.000353,2]